[Event "67th Mexican-ch Open 2022"]
[Site "Chihuahua"]
[Date "2022.04.17"]
[Round "8.7"]
[White "Morales Garcia, Sergio Joshafatt"]
[Black "Ibarra Chami, Luis Fernando"]
[Result "0-1"]
[ECO "D38"]
[WhiteElo "2246"]
[BlackElo "2451"]
[Annotator "TA"]
[PlyCount "118"]
[EventDate "2022.04.12"]
[EventType "swiss"]
[EventCountry "MEX"]
[SourceTitle "playchess.com"]
[Source "ChessBase"]
[SourceQuality "1"]
[TimeControl "5400+30"]

{[%evp 28,118,-11,-12,-12,-23,0,0,0,0,0,0,0,0,0,-8,-12,-18,0,0,29,35,35,10,18,0,0,-31,-31,-32,-34,-43,-29,-53,-37,-39,-31,-62,-52,-154,-145,-139,-136,-145,-87,-137,-79,-211,-55,-112,0,-166,-149,-148,-148,-218,-225,-232,-232,-232,-225,-233,-232,-229,-166,-191,-180,-220,-228,-255,-204,-199,0,-266,-233,-331,-312,-304,-243,-328,-295,-350,-245,-701,-674,-683,-697,-652,-656,-2498,-2411,-2100,-2015]} 1. d4 {[%emt 0:00:02]} d5 {[%emt 0:01:01]} 2. c4 {[%emt 0:00:09]} e6 {[%emt 0:00:05]} 3. Nf3 {[%emt 0:00:05]} Nf6 {[%emt 0:00:08]} 4. Nc3 {[%emt 0:00:06]} Bb4 {[%emt 0:00:11]} 5. Bg5 {[%emt 0:00:23]} Nbd7 {[%emt 0:00:37]} 6. e3 {[%emt 0:01:14]} c5 {[%emt 0:00:22]} 7. cxd5 {[%emt 0:02:12]} exd5 {[%emt 0:01:37]} 8. Qc2 {[%emt 0:02:39]} Qa5 {[%emt 0:00:17]} 9. Bd3 {[%emt 0:01:31]} c4 {[%emt 0:00:07]} 10. Bf5 {[%emt 0:07:42]} O-O {[%emt 0:00:24]} 11. O-O {[%emt 0:00:44]} Re8 {[%emt 0:00:05]} 12. Nd2 {[%emt 0:07:34]} g6 {[%emt 0:00:13]} 13. Bxd7 {[%emt 0:08:32]} Nxd7 {[%emt 0:00:09]} 14. a3 {[%emt 0:07:40]} Bxc3 {[%emt 0:02:53]} 15. bxc3 {[%emt 0:03:43]} Nb6 {[%emt 0:05:31] White should prevent ...Bf5. D38: Queen's Gambit Declined: Ragozin Defence (4 Nf3 Bb4).} 16. f3 {[%emt 0:02:53]} Na4 {[%emt 0:06:58]} 17. Rac1 {[%emt 0:00:45]} Bd7 {[%emt 0:11:35] The position is equal.} 18. Bf4 {[%emt 0:04:37]} Re6 {[%emt 0:01:19]} 19. e4 {[%emt 0:06:05]} Rae8 {[%emt 0:01:31]} 20. Rfe1 {[%emt 0:00:57]} Bc6 {[%emt 0:04:02] [#]} 21. Re3 $146 {[%emt 0:06:15]} ({Predecessor:} 21. e5 Bd7 22. Nf1 Rb6 23. Qf2 Nb2 24. Qh4 Nd3 25. e6 Rbxe6 26. Rxe6 Rxe6 27. Rb1 Nxf4 28. Qxf4 Qxc3 29. Rxb7 {0-1 (35) Vukic,R (2340)-Brkic,A (2550) Zagreb 2009}) 21... Nb6 {[%emt 0:02:58]} 22. Ra1 {[%emt 0:05:25]} Nd7 {[%emt 0:07:30]} 23. Bg3 {[%emt 0:04:05]} Nf6 {[%emt 0:02:04][%cal Rd5e4]} 24. e5 {[%emt 0:02:21]} Nh5 {[%emt 0:00:22]} 25. f4 {[%emt 0:01:36]} Bd7 {[%emt 0:00:20]} 26. h3 {[%emt 0:10:38]} Rb6 {[%emt 0:03:17]} 27. Bh2 {[%emt 0:00:05]} Bf5 {[%emt 0:00:32]} 28. Qc1 {[%emt 0:00:09] And now g4 would win.} Bd3 {[%emt 0:00:30]} 29. a4 {[%emt 0:01:45]} f5 {[%emt 0:02:34]} 30. Qa3 {[%emt 0:06:20]} Ng7 {[%emt 0:00:21]} 31. Bg3 {[%emt 0:02:23]} Ne6 {[%emt 0:00:07]} 32. Qc1 {[%emt 0:00:08]} Ra6 {[%emt 0:02:55]} 33. Rf3 {[%emt 0:01:22]} (33. Re1 $1 $15) 33... b5 $17 {[%emt 0:01:03]} 34. Be1 {[%emt 0:00:19]} bxa4 {[%emt 0:00:46] 0x0.000e62c4cfb3dp-1022s more active pieces. The white rooks are badly placed.} 35. Qa3 {[%emt 0:00:38]} Qb5 {[%emt 0:02:30]} ({Black should try} 35... Qb6 36. Ra2 Nc7) 36. Kh2 {[%emt 0:00:21]} (36. Bh4 $142) 36... Qd7 {[%emt 0:03:59]} (36... Rb8 $142 {...Qb2 is the strong threat.} 37. Ra2 Be4) 37. Qb4 {[%emt 0:01:13]} (37. Bh4 $17) 37... Bc2 $2 {[%emt 0:01:32]} ({Better is} 37... Qe7 $1 $19 {[%cal Re7b4] Hoping for ...Qxb4.} 38. Rxa4 Qxb4 39. Rxb4 Ra1) 38. Qb2 {[%emt 0:01:41]} (38. Bh4 $15) 38... Bd3 {[%emt 0:03:10]} (38... Be4 $17 39. Nxe4 fxe4) 39. Qb4 $1 $19 {[%emt 0:00:05]} Nc7 {[%emt 0:01:05]} 40. Rf2 {[%emt 0:01:15]} Ree6 $36 {[%emt 0:03:07][%cal Be8e6,Be6b6,Bb6b3][%mdl 2080] Keeping White busy.} 41. Nf3 {[%emt 0:02:36]} (41. Qa3 $17) 41... Reb6 {[%emt 0:00:07]} 42. Qa3 {[%emt 0:00:22] [#]} Rb3 $1 {[%emt 0:00:11]} 43. Qc1 {[%emt 0:00:22]} Nb5 {[%emt 0:09:11]} 44. Rfa2 {[%emt 0:00:40]} a3 {[%emt 0:00:04]} 45. Bd2 {[%emt 0:00:41]} Be4 {[%emt 0:00:40]} 46. Ng1 {[%emt 0:00:33]} Qe7 {[%emt 0:00:32]} 47. Ne2 {[%emt 0:00:24]} Rb6 {[%emt 0:01:35]} 48. Qg1 {[%emt 0:01:15]} Nc7 {[%emt 0:01:06]} 49. Bc1 {[%emt 0:00:00][%cal Rc1a3] [#]} Nb5 {[%emt 0:01:22]} (49... Ra6 $142 $1 50. Qe1 Nb5) 50. Bd2 $1 {[%emt 0:00:04]} Rb2 {[%emt 0:02:12]} 51. Qe1 {[%emt 0:00:21]} (51. Bc1 $142 Rb3 52. Bd2) 51... Bd3 {[%emt 0:00:34]} 52. Ng1 {[%emt 0:00:33]} a6 {[%emt 0:02:34][%cal Ba7a6,Ba6a5,Ba5a4,Ba4a3][%mdl 32]} ({Don't go for} 52... Be4 $2 53. Ne2 $19) 53. Kh1 {[%emt 0:00:16]} a5 {[%emt 0:02:10][%cal Od3b1]} 54. Kh2 {[%emt 0:00:15]} a4 {[%emt 0:00:06][%cal Od3b1] Threatens to win with ...Bb1!} ({Don't blunder} 54... Be4 $2 55. Bc1 Rb3 56. Bd2 $19) 55. Kh1 $2 {[%emt 0:00:08] [#]} (55. Nf3) 55... Bb1 $1 {[%emt 0:01:38][%mdl 512] Black is clearly winning.} 56. Rxb2 {[%emt 0:01:29]} axb2 {[%emt 0:00:05]} 57. Rxb1 {[%emt 0:00:47]} Na3 {[%emt 0:00:59]} 58. Nf3 {[%emt 0:00:34]} Nxb1 {[%emt 0:00:06]} 59. Qxb1 {[%emt 0:00:04]} a3 {[%emt 0:00:25] Weighted Error Value: White=0.43/Black=0.27 (precise)} 0-1

[Event "67th Mexican-ch Open 2022"]
[Site "Chihuahua"]
[Date "2022.04.17"]
[Round "8.8"]
[White "Perez Gormaz, Matias"]
[Black "Fernandez Hernandez, Arturo A."]
[Result "1/2-1/2"]
[ECO "B05"]
[WhiteElo "2404"]
[BlackElo "2376"]
[Annotator "TA"]
[PlyCount "108"]
[EventDate "2022.04.12"]
[EventType "swiss"]
[EventCountry "MEX"]
[SourceTitle "playchess.com"]
[Source "ChessBase"]
[SourceQuality "1"]
[TimeControl "5400+30"]

{[%evp 22,108,62,73,63,44,50,43,46,35,45,17,89,49,44,47,120,116,143,143,163,164,155,154,126,105,169,176,178,104,104,84,163,154,145,149,425,133,143,82,96,68,1652,1651,1350,1350,320,0,0,0,302,158,152,145,160,160,147,110,122,0,0,0,0,0,0,0,0,0,0,0,0,0,0,0,0,0,0,0,0,0,0,0,0,0,0,0,0,0,0]} 1. e4 {[%emt 0:00:05][%cal Be2e4,Be4e5][%mdl 32]} Nf6 {[%emt 0:00:17]} 2. e5 {[%emt 0:00:31]} Nd5 {[%emt 0:00:06]} 3. d4 {[%emt 0:00:09]} d6 {[%emt 0:00:03]} 4. Nf3 {[%emt 0:00:48]} Bg4 {[%emt 0:00:35]} 5. Be2 {[%emt 0:00:10]} e6 {[%emt 0:00:08]} 6. O-O {[%emt 0:01:44]} Be7 {[%emt 0:00:04]} 7. c4 {[%emt 0:02:06]} Nb6 {[%emt 0:07:21]} 8. Be3 {[%emt 0:01:01]} O-O {[%emt 0:00:33]} 9. Nc3 {[%emt 0:01:50]} Nc6 {[%emt 0:00:32]} 10. exd6 {[%emt 0:00:20]} cxd6 {[%emt 0:00:01]} 11. d5 {[%emt 0:05:26]} Bxf3 {[%emt 0:00:28]} 12. Bxf3 {[%emt 0:00:04]} Ne5 {[%emt 0:00:05] B05: Alekhine's Defence: 4 Nf3 Bg4.} 13. b3 {[%emt 0:00:12]} Nxf3+ {[%emt 0:00:32]} 14. Qxf3 {[%emt 0:03:19]} e5 {[%emt 0:00:06] White is slightly better.} 15. Rfd1 {[%emt 0:02:39][%cal Oc4c5]} f5 {[%emt 0:08:48]} 16. c5 {[%emt 0:01:56] [#]} f4 $146 {[%emt 0:01:51]} ({Predecessor:} 16... e4 17. Qe2 dxc5 18. d6 Bf6 19. Rac1 Be5 20. Bxc5 Rf6 21. g3 Bxc3 22. Rxc3 Nd7 {1-0 (29) Loskutov,O (2429)-Kirillov,P (2247) Novosibirsk 2001}) 17. cxb6 {[%emt 0:32:36] Threatens to win with Bd2.} fxe3 {[%emt 0:01:08]} 18. Qxe3 {[%emt 0:00:03]} Bg5 {[%emt 0:02:24]} (18... Qxb6 $14 19. Qe2 Rac8) 19. Qh3 $1 $16 {[%emt 0:00:07]} Qxb6 {[%emt 0:01:31]} 20. Ne4 $36 {[%emt 0:00:40][%mdl 2048] White is really pushing.} Be7 {[%emt 0:01:24]} 21. Qe6+ {[%emt 0:00:26]} Rf7 {[%emt 0:00:27]} 22. Rd3 {[%emt 0:05:53]} Raf8 {[%emt 0:01:27]} 23. Rf3 {[%emt 0:01:50]} Qd4 {[%emt 0:18:22]} (23... Qb4 $16 24. Ng3 (24. Rxf7 Rxf7 25. Qc8+ Rf8 $11) 24... g6) 24. Re1 $18 {[%emt 0:02:58][%cal Oh2h4,Ba1e1,Be1e3,Be3c3][%mdl 32] h4! is the strong threat.} g6 {[%emt 0:00:40]} 25. h3 {[%emt 0:13:03]} (25. Nxd6 $2 Qb4 $1 {[%mdl 512]} 26. Rxe5 Bxd6 $19) (25. Rxf7 Rxf7 26. h3 Kg7 $16) (25. h4 $1 $18 {[%cal Rh4h5]} Kg7 26. h5 (26. Nxd6 Bxd6 27. Qxd6 Rxf3 $11) 26... gxh5 27. Ree3 (27. Nxd6 Bxd6 28. Qxd6 Rxf3 $11)) 25... Kg7 $16 {[%emt 0:04:24]} 26. Ree3 {[%emt 0:00:36]} (26. Nxd6 $6 Bxd6 27. Qxd6 Rxf3 28. gxf3 Rf5 $14) 26... Qb6 {[%emt 0:01:43]} (26... Bh4 $16) 27. Rxf7+ $18 {[%emt 0:06:25]} Rxf7 {[%emt 0:00:25]} 28. Rc3 {[%emt 0:00:15]} Bf8 $2 {[%emt 0:10:04][%mdl 8192]} (28... Qd8 $16 29. Rc8 Qa5) 29. Kh2 $2 {[%emt 0:00:31]} (29. h4 $1 $18 {[%cal Rh4h5] aiming for h5!} Rf4 30. h5 $1) 29... Qd8 $16 {[%emt 0:00:27]} 30. g3 {[%emt 0:05:12] &Bianco is much more active.} ({Better is} 30. Rc8 Qe7 31. Kg3) 30... Qa5 {[%emt 0:07:33][%cal Of7f2] [#]} 31. Kg2 $1 {[%emt 0:00:32] Strongly threatening g4.} (31. Rc8 $6 Qe1 32. Rc7 (32. Qg4 $2 h5 $19) 32... Rxc7 $11) 31... Qb4 $2 {[%emt 0:02:01][%mdl 8192] [#]} (31... Qxa2 $14 32. Nf6 (32. Rf3 Rxf3 33. Kxf3 Qb1 $11) 32... e4) 32. Rf3 $1 $18 {[%emt 0:08:05]} Rxf3 {[%emt 0:06:05]} (32... Rf5 33. Rxf5) 33. Kxf3 {[%emt 0:00:02] White threatens Qd7+ and mate.} Qd4 {[%emt 0:01:27]} 34. Qf6+ {[%emt 0:01:12]} Kg8 {[%emt 0:00:02] Hoping for ...Qd3+.} 35. Qe6+ {[%emt 0:00:28]} Kg7 {[%emt 0:00:02] And now ...Qd3+ would win.} 36. Ng5 {[%emt 0:01:56]} (36. Nxd6 $18 {Threatening mate with Qf7+.} Bxd6 37. Qd7+ (37. Qxd6 Qd3+ 38. Kg2 Qe4+ 39. Kh2 Qf5 $18) 37... Kh6 38. Qxd6 Qd3+ 39. Kg2 Qe4+ 40. Kh2) 36... Qd3+ $16 {[%emt 0:01:34]} (36... Kh6 37. h4 (37. Nf7+ Kg7 $18) 37... Kh5 38. Kg2 $18) 37. Kg2 {[%emt 0:03:14] White wants to mate with Qf7+.} ({But not} 37. Kg4 $6 Qd4+ 38. Kf3 Qd3+ 39. Kg4 (39. Kg2 Qf5 $14) 39... Qd4+ 40. Kf3 $14) 37... Qf5 {[%emt 0:00:54] Against Qf7+} 38. Qxf5 {[%emt 0:00:20]} gxf5 {[%emt 0:00:02][%mdl 4096] Endgame KB-KN} 39. Ne6+ {[%emt 0:00:07]} Kf7 {[%emt 0:04:39]} 40. g4 {[%emt 0:00:46]} (40. Nd8+ $16 Kf6 41. f4 (41. Nxb7 e4 $14)) 40... Be7 $11 {[%emt 0:00:49] The position is equal.} 41. Kf3 {[%emt 0:00:41]} Kg6 {[%emt 0:00:20]} 42. a4 {[%emt 0:00:40]} Bg5 {[%emt 0:04:50]} 43. b4 {[%emt 0:00:29]} Bd2 {[%emt 0:00:34]} 44. b5 {[%emt 0:00:07] Black must now prevent Nd8.} Ba5 {[%emt 0:00:05] Prevents Nd8.} 45. Ke2 {[%emt 0:00:53]} Kf6 {[%emt 0:03:31]} 46. f3 {[%emt 0:00:23]} h6 {[%emt 0:00:37]} 47. Kd3 {[%emt 0:00:35]} Bb6 {[%emt 0:01:07]} 48. Ke2 {[%emt 0:00:30]} Kg6 {[%emt 0:03:51]} 49. Nf8+ {[%emt 0:00:06]} Kf7 {[%emt 0:01:17]} 50. Ne6 {[%emt 0:00:02]} Kf6 {[%emt 0:00:42]} 51. Kd3 {[%emt 0:00:04]} Kg6 {[%emt 0:00:42]} 52. Nf8+ {[%emt 0:00:12]} Kf7 {[%emt 0:02:01]} 53. Ne6 {[%emt 0:00:04]} Kf6 {[%emt 0:00:18]} 54. Ke2 {[%emt 0:00:03]} Ba5 {[%emt 0:04:12] Weighted Error Value: White=0.44/Black=0.17 (very precise)} 1/2-1/2

[Event "67th Mexican-ch Open 2022"]
[Site "Chihuahua"]
[Date "2022.04.17"]
[Round "8.9"]
[White "Gonzalez Arroyo, Lenin"]
[Black "Galaviz Medina, Sion Radamantys"]
[Result "0-1"]
[ECO "B53"]
[WhiteElo "2210"]
[BlackElo "2374"]
[Annotator "TA"]
[PlyCount "52"]
[EventDate "2022.04.12"]
[EventType "swiss"]
[EventCountry "MEX"]
[SourceTitle "playchess.com"]
[Source "ChessBase"]
[SourceQuality "1"]
[TimeControl "5400+30"]

{[%evp 9,52,13,23,17,43,-31,-23,-27,-37,-16,-36,-39,-18,-20,-22,-16,-16,-19,-12,-55,-59,-61,-51,-56,-41,-91,-80,-91,-89,-74,-73,-191,-182,-185,-62,-64,-46,-294,-287,-289,-288,-285,-281,-547,-347]} 1. e4 {[%emt 0:00:10]} c5 {[%emt 0:00:07]} 2. Nf3 {[%emt 0:00:16]} d6 {[%emt 0:00:06]} 3. d4 {[%emt 0:01:09]} cxd4 {[%emt 0:00:03]} 4. Qxd4 {[%emt 0:00:10]} Nc6 {[%emt 0:00:50]} 5. Qe3 {[%emt 0:01:13]} Nf6 {[%emt 0:01:15]} 6. Be2 {[%emt 0:04:19] B53: Sicilian: 2...d6: Lines with Qxd4.} d5 {[%emt 0:18:08] [#]} 7. e5 $146 {[%emt 0:01:34]} (7. exd5 $1 $14 Nxd5 8. Qb3) ({Predecessor:} 7. exd5 Nxd5 8. Qb3 e6 9. O-O Qb6 10. Nc3 Nxc3 11. Qxc3 Qc5 12. Qb3 Be7 13. Be3 {1-0 (41) Teclaf,P (2520)-Shevchenko,K (2619) Polanica Zdroj 2021}) 7... Ng4 $15 {[%emt 0:00:06]} 8. Qf4 {[%emt 0:00:36] Black has an edge.} g6 {[%emt 0:00:28]} 9. O-O {[%emt 0:13:04]} Bg7 {[%emt 0:20:22]} 10. Bb5 {[%emt 0:17:33]} O-O {[%emt 0:15:37][%cal Rg4e5]} (10... f6 $5 {[%cal Rf6e5]} 11. Qa4 O-O 12. Bxc6 bxc6 $15) 11. Bxc6 {[%emt 0:01:10]} bxc6 {[%emt 0:00:04]} 12. h3 {[%emt 0:01:07]} Nh6 $36 {[%emt 0:00:08][%mdl 2048] Black has good play.} ({Don't do} 12... Bh6 13. Qa4 Bxc1 14. Rxc1 $16) 13. Qa4 {[%emt 0:06:51]} Qb6 {[%emt 0:00:46]} 14. Qa3 {[%emt 0:14:13]} Nf5 {[%emt 0:01:02] Hoping for ...f6.} 15. Nc3 {[%emt 0:02:30]} f6 $1 {[%emt 0:07:11]} 16. Na4 {[%emt 0:03:54]} Qc7 {[%emt 0:00:24]} 17. exf6 {[%emt 0:02:07]} (17. g4 {[#]} fxe5 $1 18. gxf5 Rxf5 $17) (17. Bf4 $1 $15) 17... Bxf6 $17 {[%emt 0:00:57] And now ...e5 would win.} ({Reject} 17... exf6 $6 18. Re1 $11) 18. Bg5 {[%emt 0:02:05]} Bg7 {[%emt 0:00:42]} 19. Rad1 {[%emt 0:09:45][%cal Oc2c4]} e5 {[%emt 0:06:42][%cal Be7e5,Be5e4][%mdl 32]} 20. Qc5 {[%emt 0:01:56]} (20. c4 $17 {was worth a try.}) 20... e4 {[%emt 0:07:02]} 21. Nh4 {[%emt 0:01:57][%cal Od1d5]} h6 {[%emt 0:15:51]} (21... Ba6 $19 22. Rfe1 Rab8 23. Nxf5 (23. Rxd5 $2 Rb5 $19) 23... Rxf5) 22. Nxf5 $15 {[%emt 0:00:47]} Rxf5 {[%emt 0:00:04]} 23. Be3 {[%emt 0:00:20] Now White is beyond hope.} (23. Bh4 $1 $15) 23... Ba6 $19 {[%emt 0:00:07] [#] White must now prevent ...d4.} 24. Rfe1 {[%emt 0:03:43]} d4 $1 {[%emt 0:00:29]} 25. Qa3 {[%emt 0:00:45]} dxe3 {[%emt 0:00:16] The board is on fire.} 26. Rxe3 {[%emt 0:00:27]} (26. Qxe3 Re8 27. Nc5) 26... Rd8 {[%emt 0:01:27] Weighted Error Value: White=0.40/Black=0.09 (flawless)} 0-1

[Event "67th Mexican-ch Open 2022"]
[Site "Chihuahua"]
[Date "2022.04.17"]
[Round "8.10"]
[White "Avila Bautista, Roberto Al"]
[Black "Diaz Villagran, Robert"]
[Result "1/2-1/2"]
[ECO "A15"]
[WhiteElo "2090"]
[BlackElo "2318"]
[Annotator "TA"]
[PlyCount "145"]
[EventDate "2022.04.12"]
[EventType "swiss"]
[EventCountry "MEX"]
[SourceTitle "playchess.com"]
[Source "ChessBase"]
[SourceQuality "1"]
[TimeControl "5400+30"]

{[%evp 14,145,0,-14,-7,-14,-21,-23,-10,-10,-17,-11,10,9,12,-18,-17,-15,-15,-48,-56,-45,-51,-55,-41,-75,-56,-62,-56,-76,-56,-56,-56,-56,-56,-56,-56,-56,-56,-56,-56,-57,-56,-68,-60,-68,-68,-69,-68,-68,-60,-68,-51,-77,-77,-79,-69,-94,0,0,0,-85,0,-89,-69,-76,-69,-78,-27,-34,-38,-47,0,0,0,0,0,0,167,9,23,4,181,13,22,29,75,0,62,0,0,0,0,0,0,-16,0,-16,0,0,0,0,0,0,0,-16,0,0,0,0,0,-6,0,0,0,-28,0,0,0,0,0,-6,0,0,0,-28,-28,-28,0,-7,0,0,0,-119]} 1. Nf3 {[%emt 0:00:14]} Nf6 {[%emt 0:00:16]} 2. b3 {[%emt 0:01:01]} g6 {[%emt 0:00:29]} 3. Bb2 {[%emt 0:00:21]} Bg7 {[%emt 0:00:04]} 4. g3 {[%emt 0:00:33]} O-O {[%emt 0:00:11]} 5. Bg2 {[%emt 0:00:24]} d6 {[%emt 0:00:05]} 6. O-O {[%emt 0:00:38]} e5 {[%emt 0:00:05]} 7. c4 {[%emt 0:01:31]} c6 {[%emt 0:00:14]} 8. Nc3 {[%emt 0:01:09]} Re8 {[%emt 0:00:18] A15: English Opening: 1...Nf6.} 9. d3 {[%emt 0:05:09]} d5 {[%emt 0:03:30]} 10. e3 {[%emt 0:07:46][%cal Be2e3,Be3e4][%mdl 32] [#]} Bf5 $146 {[%emt 0:07:37] Black has an edge.} ({Predecessor:} 10... Na6 11. h3 Nb4 12. Ne1 e4 13. cxd5 cxd5 14. Qd2 Qe7 15. Rc1 Bd7 16. a3 Nc6 {½-½ (27) Kahl,F (2353)-Aberbach Peltzman,A (2243) LSS email 2015}) 11. Re1 {[%emt 0:19:56]} dxc4 {[%emt 0:07:59]} 12. dxc4 {[%emt 0:02:59]} Nbd7 {[%emt 0:05:07]} 13. e4 $1 {[%emt 0:03:08]} Bg4 {[%emt 0:02:20]} 14. h3 {[%emt 0:01:07]} Bxf3 {[%emt 0:00:04]} 15. Qxf3 {[%emt 0:02:39]} Nc5 {[%emt 0:00:40]} 16. Na4 {[%emt 0:10:15]} Nxa4 {[%emt 0:04:57]} 17. bxa4 {[%emt 0:00:09]} Nd7 {[%emt 0:04:39]} 18. Rab1 {[%emt 0:03:41]} Qc7 {[%emt 0:03:17]} 19. Rec1 {[%emt 0:09:18]} Bf8 {[%emt 0:01:27]} 20. Bc3 {[%emt 0:04:32]} a5 {[%emt 0:02:35]} 21. Qd1 {[%emt 0:04:44]} Bc5 {[%emt 0:15:34]} 22. Qc2 {[%emt 0:00:53]} Nf8 {[%emt 0:00:28]} 23. Rd1 {[%emt 0:01:20]} b6 {[%emt 0:01:17]} 24. h4 {[%emt 0:01:40]} Ne6 {[%emt 0:05:49]} 25. Bh3 {[%emt 0:00:23]} Nd4 {[%emt 0:00:01]} 26. Bxd4 {[%emt 0:00:32]} Bxd4 {[%emt 0:00:48]} 27. Kg2 {[%emt 0:01:24]} Rad8 {[%emt 0:00:04]} 28. Rd2 {[%emt 0:00:32]} Kg7 {[%emt 0:00:48]} 29. Rbd1 {[%emt 0:01:01]} Qe7 {[%emt 0:00:31]} 30. Rd3 {[%emt 0:03:49]} Qc5 {[%emt 0:00:13]} 31. R1d2 {[%emt 0:00:45]} Rd6 {[%emt 0:00:12][%cal Of7f5]} 32. Rf3 {[%emt 0:02:41]} Red8 {[%emt 0:01:53]} 33. Qb3 {[%emt 0:00:43]} h5 {[%emt 0:02:11]} 34. Qc2 {[%emt 0:01:47]} Qb4 {[%emt 0:01:28]} 35. Rdd3 {[%emt 0:01:31]} Kf8 {[%emt 0:02:35]} 36. Qc1 $1 {[%emt 0:01:06] Threatening mate with Qh6+.} Kg7 {[%emt 0:00:35] Inhibits Qh6+.} (36... Qxa4 37. Qh6+ Kg8 38. Rxf7 $3 {[%mdl 512]} Kxf7 39. Qh7+ Ke8 40. Rf3) 37. Qc2 $1 {[%emt 0:03:15]} Qc5 {[%emt 0:00:23]} 38. Rd2 $1 {[%emt 0:00:22]} Re8 {[%emt 0:00:13][%cal Bd8e8,Be8e7,Be7c7,Bc7g7][%mdl 32]} 39. Qb3 {[%emt 0:00:40]} Re7 {[%emt 0:00:17]} 40. Rdd3 {[%emt 0:00:53]} f5 {[%emt 0:00:51]} (40... Rd8 $17) 41. Bxf5 $1 $11 {[%emt 0:02:44]} gxf5 {[%emt 0:00:20]} 42. Rxf5 {[%emt 0:00:07]} Rh6 {[%emt 0:02:53]} (42... Rg6 $15) 43. Rdf3 $1 {[%emt 0:00:40]} Qb4 {[%emt 0:00:45]} 44. Qd3 {[%emt 0:01:13]} Rc7 {[%emt 0:00:43]} 45. Rg5+ {[%emt 0:00:15]} Kh7 $2 {[%emt 0:00:05]} (45... Rg6 $1 $11) 46. Rff5 $2 {[%emt 0:00:16]} (46. c5 $1 $18 Ra7 47. a3) 46... Rg7 $1 {[%emt 0:02:31]} (46... Qxa4 $2 47. Rxh5 Rxh5 48. Rxh5+ Kg8 49. Qd2 $18) 47. Rxh5 {[%emt 0:00:18]} Qd6 $2 {[%emt 0:00:16] [#]} (47... Qxa4 {leads to mate.} 48. Qf3) (47... Rxh5 $11 48. Rxh5+ Kg8) 48. Rxh6+ $2 {[%emt 0:01:04] Really sharp!} (48. Qf3 $1 $18 Rxh5 49. Rxh5+ (49. Qxh5+ Qh6 $11) 49... Kg8 50. Qf5) 48... Qxh6 {[%emt 0:00:54]} 49. Qf3 {[%emt 0:00:11] And now Rh5 would win.} Qg6 {[%emt 0:00:00]} 50. Rg5 {[%emt 0:00:26]} (50. h5 $16 Qe6 51. Rf6) 50... Qf7 {[%emt 0:01:26]} (50... Qe6 $1 $11) 51. Rxg7+ {[%emt 0:00:39]} (51. Rh5+ $1 $14 Kg8 52. Rf5) 51... Kxg7 {[%emt 0:03:30]} 52. Qg4+ {[%emt 0:01:17]} Qg6 {[%emt 0:02:27]} 53. Qf3 {[%emt 0:00:38]} Qe6 {[%emt 0:00:58]} 54. Qe2 {[%emt 0:00:22]} Bc5 {[%emt 0:00:24]} (54... Kf7 {is interesting.} 55. Qh5+ Qg6 56. Qf3+ Qf6) 55. Kh2 {[%emt 0:00:21]} Be7 {[%emt 0:00:33]} 56. Kg2 {[%emt 0:00:10]} Qg6 {[%emt 0:00:26] White must now prevent ...Bxh4.} 57. Kh2 {[%emt 0:00:22]} Kf7 {[%emt 0:00:08]} 58. Qf3+ {[%emt 0:00:22]} Ke6 {[%emt 0:00:01]} 59. Qe2 {[%emt 0:00:50]} Kd6 {[%emt 0:00:18]} 60. Qd3+ {[%emt 0:00:31]} Kc7 {[%emt 0:00:44]} 61. Qf3 {[%emt 0:00:24] Against Qg4} Qe6 {[%emt 0:00:40]} 62. Qe2 {[%emt 0:00:11]} Qf7 {[%emt 0:00:59]} 63. Kg2 {[%emt 0:00:20]} Bc5 {[%emt 0:01:01]} 64. Qc2 {[%emt 0:01:18]} Qh5 {[%emt 0:00:39]} 65. Qd3 {[%emt 0:00:22]} Qg4 {[%emt 0:00:14]} 66. Qf3 {[%emt 0:00:43]} Qg8 {[%emt 0:00:31]} 67. Qd3 {[%emt 0:00:37]} Bd4 {[%emt 0:00:22]} 68. Qe2 {[%emt 0:00:27]} Qf7 {[%emt 0:00:23]} 69. Qc2 {[%emt 0:00:44]} Kd6 {[%emt 0:00:26]} 70. Qe2 {[%emt 0:00:36]} Kc5 {[%emt 0:05:57]} 71. h5 {[%emt 0:00:02] The position is equal.} Qf6 {[%emt 0:01:56]} (71... Qxc4 $2 72. Qxc4+ Kxc4 73. h6 $18) (71... Kd6 $11) 72. Qf3 $17 {[%emt 0:00:29]} Qh6 {[%emt 0:00:00]} 73. Qa3+ {[%emt 0:01:30] Weighted Error Value: White=0.18 (very precise) /Black=0.20 (precise)} 1/2-1/2